{"text_format":"1","workbook":"xlsx","n_sheets":3,"sheets":["請求書","入力シート","請求明書（新書式）"],"not_rendered":{"charts":0,"images":0,"macros":1,"external_links":0,"defined_names":38,"comments":0,"pivot_tables":0},"unopened":[],"bounds":{"document_bytes":16777216,"sheet_cells":100000,"rows_first":2000,"rows_last":500,"rows_between":2000,"halvings":0,"cell_chars":16384,"cell_head_chars":4096},"cells_cut":0,"cells_raw":0,"read":"whole","date_system":"1900"}

{"sheet":"請求書","index":0,"n_rows":56,"n_cols":56,"rows_kept":56,"cut":false,"hidden":true,"merged":[[54,0,54,2],[55,0,55,2],[21,0,21,25],[22,0,22,2],[22,3,22,12],[22,13,22,16],[52,0,52,2],[52,3,52,12],[52,13,52,16],[23,3,23,12],[53,0,53,2],[53,3,53,12],[53,13,53,16],[40,1,40,5],[40,6,40,17],[42,10,42,12],[42,13,42,17],[23,13,23,16],[23,17,23,25],[24,0,24,2],[23,0,23,2],[48,1,48,9],[42,1,42,9],[42,23,42,27],[41,1,41,5],[41,6,41,8],[25,0,25,2],[27,26,29,30],[24,49,24,55],[41,9,41,11],[41,12,41,15],[25,3,25,25],[18,28,18,34],[26,46,26,50],[27,46,29,50],[26,41,26,45],[27,41,29,45],[26,36,26,40],[27,36,29,40],[26,31,26,35],[27,31,29,35],[26,26,26,30],[18,35,18,41],[23,35,23,41],[23,28,23,34],[22,28,22,34],[27,51,29,55],[26,51,26,55],[21,42,21,48],[18,42,18,48],[18,49,18,55],[21,49,21,55],[22,49,22,55],[22,35,22,41],[22,42,22,48],[24,35,24,41],[24,42,24,48],[23,42,23,48],[23,49,23,55],[26,0,26,8],[9,0,10,4],[9,5,10,20],[22,17,22,25],[9,49,9,55],[12,49,12,55],[12,42,12,48],[14,49,14,55],[14,42,14,48],[11,5,11,6],[24,28,24,34],[24,3,24,25],[9,28,9,34],[9,35,9,41],[10,35,10,41],[14,0,14,4],[13,28,13,34],[12,28,12,34],[12,22,12,27],[12,0,12,4],[12,5,12,6],[13,0,13,4],[13,22,13,27],[11,28,11,34],[8,0,8,4],[8,5,8,20],[8,26,8,43],[10,28,10,34],[11,42,11,48],[10,22,10,27],[9,22,9,27],[9,42,9,48],[4,27,5,55],[6,27,7,49],[8,50,8,55],[6,50,7,50],[5,5,6,20],[8,44,8,45],[8,22,8,25],[8,46,8,49],[4,22,5,25],[4,0,4,4],[4,5,4,7],[4,9,4,10],[6,22,7,25],[5,0,6,4],[7,0,7,4],[7,5,7,20],[11,0,11,4],[13,5,13,20],[15,22,15,27],[17,28,17,31],[11,22,11,27],[14,5,14,20],[17,32,17,34],[21,35,21,41],[21,28,21,34],[11,35,11,41],[17,35,17,41],[14,28,14,34],[14,22,14,27],[3,35,3,41],[13,42,13,48],[10,49,10,55],[15,28,15,34],[16,42,16,48],[15,42,15,48],[15,49,15,55],[16,35,16,41],[17,42,17,48],[16,28,16,34],[15,35,15,41],[17,49,17,55],[11,49,11,55],[10,42,10,48],[16,49,16,55],[13,49,13,55],[14,35,14,41],[13,35,13,41],[12,35,12,41]]}
[]
[]
[]
[null,null,null,null,null,null,null,null,null,null,null,null,null,null,null,null,null,null,null,null,null,null,null,null,null,null,null,null,null,null,null,null,null,null,null,"登録番号",null,null,null,null,null,null,"T",{"$f":"入力シート!AS4","v":0},{"$f":"入力シート!AT4","v":0},{"$f":"入力シート!AU4","v":0},{"$f":"入力シート!AV4","v":0},{"$f":"入力シート!AW4","v":0},{"$f":"入力シート!AX4","v":0},{"$f":"入力シート!AY4","v":0},{"$f":"入力シート!AZ4","v":0},{"$f":"入力シート!BA4","v":0},{"$f":"入力シート!BB4","v":0},{"$f":"入力シート!BC4","v":0},{"$f":"入力シート!BD4","v":0},{"$f":"入力シート!BE4","v":0}]
["請求年月",null,null,null,null,{"$f":"入力シート!G5","v":0},null,null,"年",{"$f":"入力シート!K5","v":0},null,"月分",null,null,null,null,null,null,null,null,null,null,"住所",null,null,null,null,{"$f":"入力シート!AB5","v":0}]
["工事件名又は\n担当部署名",null,null,null,null,{"$f":"IF(入力シート!G6=\"\",\"\",入力シート!G6)","v":""}]
[null,null,null,null,null,null,null,null,null,null,null,null,null,null,null,null,null,null,null,null,null,null,"会社名",null,null,null,null,{"$f":"入力シート!AB7","v":0}]
["注文書番号",null,null,null,null,{"$f":"IF(入力シート!G8=\"\",\"\",入力シート!G8)","v":""}]
["請求書番号",null,null,null,null,{"$f":"IF(入力シート!G9=\"\",\"\",入力シート!G9)","v":""},null,null,null,null,null,null,null,null,null,null,null,null,null,null,null,null,"担当者",null,null,null,{"$f":"IF(入力シート!AB9=\"\",\"\",入力シート!AB9)","v":""},null,null,null,null,null,null,null,null,null,null,null,null,null,null,null,null,null,"印",null,"電話番号",null,null,null,{"$f":"IF(入力シート!AZ9=\"\",\"\",入力シート!AZ9)","v":""}]
["請求内容",null,null,null,null,{"$f":"IF(入力シート!G10=\"\",\"\",入力シート!G10)","v":""},null,null,null,null,null,null,null,null,null,null,null,null,null,null,null,null,"項目",null,null,null,null,null,"契約金額",null,null,null,null,null,null,"既請求金額",null,null,null,null,null,null,"今回請求額",null,null,null,null,null,null,"残金額"]
[null,null,null,null,null,null,null,null,null,null,null,null,null,null,null,null,null,null,null,null,null,null,"契約金額",null,null,null,null,null,{"$f":"IF(入力シート!AD11=\"\",\"\",入力シート!AD11)","v":0},null,null,null,null,null,null,{"$f":"IF(入力シート!AK11=\"\",\"\",入力シート!AK11)","v":0},null,null,null,null,null,null,{"$f":"IF(入力シート!AR11=\"\",\"\",入力シート!AR11)","v":0},null,null,null,null,null,null,{"$f":"IF(入力シート!AY11=\"\",\"\",入力シート!AY11)","v":0}]
["支払サイト",null,null,null,null,{"$f":"IF(入力シート!G12=\"\",\"\",入力シート!G12)","v":""},null,"日",null,null,null,null,null,null,null,null,null,null,null,null,null,null,"変更増額",null,null,null,null,null,{"$f":"IF(入力シート!AD12=\"\",\"\",入力シート!AD12)","v":0},null,null,null,null,null,null,{"$f":"IF(入力シート!AK12=\"\",\"\",入力シート!AK12)","v":0},null,null,null,null,null,null,{"$f":"IF(入力シート!AR12=\"\",\"\",入力シート!AR12)","v":0},null,null,null,null,null,null,{"$f":"IF(入力シート!AY12=\"\",\"\",入力シート!AY12)","v":0}]
["手形サイト",null,null,null,null,{"$f":"IF(入力シート!G13=\"\",\"\",入力シート!G13)","v":""},null,"日",null,null,null,null,null,null,null,null,null,null,null,null,null,null,"変更減額",null,null,null,null,null,{"$f":"IF(入力シート!AD13=\"\",\"\",入力シート!AD13)","v":0},null,null,null,null,null,null,{"$f":"IF(入力シート!AK13=\"\",\"\",入力シート!AK13)","v":0},null,null,null,null,null,null,{"$f":"IF(入力シート!AR13=\"\",\"\",入力シート!AR13)","v":0},null,null,null,null,null,null,{"$f":"IF(入力シート!AY13=\"\",\"\",入力シート!AY13)","v":0}]
[null,null,null,null,null,null,null,null,null,null,null,null,null,null,null,null,null,null,null,null,null,null,{"$f":"IF(F17<>\"課税仕入５％内税\",\"税抜計\",\"税込計\")","v":"税抜計"},null,null,null,null,null,{"$f":"IF(入力シート!AD14=\"\",\"\",入力シート!AD14)","v":0},null,null,null,null,null,null,{"$f":"IF(入力シート!AK14=\"\",\"\",入力シート!AK14)","v":0},null,null,null,null,null,null,{"$f":"IF(入力シート!AR14=\"\",\"\",入力シート!AR14)","v":0},null,null,null,null,null,null,{"$f":"IF(入力シート!AY14=\"\",\"\",入力シート!AY14)","v":0}]
[null,null,null,null,null,null,null,null,null,null,null,null,null,null,null,null,null,null,null,null,null,null,{"$f":"IF($F$17<>\"課税仕入５％内税\",\"消費税等\",\"仕入控除税額\")","v":"消費税等"},null,null,null,null,null,{"$f":"IF(入力シート!AD15=\"\",\"\",入力シート!AD15)","v":0},null,null,null,null,null,null,{"$f":"IF(入力シート!AK15=\"\",\"\",入力シート!AK15)","v":0},null,null,null,null,null,null,{"$f":"IF(入力シート!AR15=\"\",\"\",入力シート!AR15)","v":0},null,null,null,null,null,null,{"$f":"IF(入力シート!AY15=\"\",\"\",入力シート!AY15)","v":0}]
[null,null,null,null,null,null,null,null,null,null,null,null,null,null,null,null,null,null,null,null,null,null,"請求金額計",null,null,null,null,null,{"$f":"IF(入力シート!AD16=\"\",\"\",入力シート!AD16)","v":0},null,null,null,null,null,null,{"$f":"IF(入力シート!AK16=\"\",\"\",入力シート!AK16)","v":0},null,null,null,null,null,null,{"$f":"IF(入力シート!AR16=\"\",\"\",入力シート!AR16)","v":0},null,null,null,null,null,null,{"$f":"IF(入力シート!AY16=\"\",\"\",入力シート!AY16)","v":0}]
[null,null,null,null,null,null,null,null,null,null,null,null,null,null,null,null,null,null,null,null,null,null,null,null,null,null,null,null,"※１　預り保留金",null,null,null,null,null,null,"前回迄の保留金",null,null,null,null,null,null,"今回保留金",null,null,null,null,null,null,"預り保留金累計"]
[null,null,null,null,null,null,null,null,null,null,null,null,null,null,null,null,null,null,null,null,null,null,null,null,null,null,null,null,"保留率",null,null,null,{"$f":"IF(入力シート!AH18=\"\",\"\",入力シート!AH18)","v":0},null,null,{"$f":"IF(入力シート!AK18=\"\",\"\",入力シート!AK18)","v":0},null,null,null,null,null,null,{"$f":"IF(入力シート!AR18=\"\",\"\",入力シート!AR18)","v":0},null,null,null,null,null,null,{"$f":"IF(入力シート!AY18=\"\",\"\",入力シート!AY18)","v":0}]
[null,null,null,null,null,null,null,null,null,null,null,null,null,null,null,null,null,null,null,null,null,null,null,null,null,null,null,null,"保留金解除金額",null,null,null,null,null,null,{"$f":"入力シート!AK19","v":0},null,null,null,null,null,null,"今回支払金額",null,null,null,null,null,null,{"$f":"IF(入力シート!AY19=\"\",\"\",入力シート!AY19)","v":0}]
[null,null,null,null,null,null,null,null,null,null,null,null,null,null,null,null,null,null,null,null,null,null,null,null,null,null,null,null,"※１．預り保留金は最終請求お支払の翌月請求にてお支払いたします。（更新ボタンを押してください）"]
[null,null,null,null,null,null,null,null,null,null,null,null,null,null,null,null,null,null,null,null,null,null,null,null,null,null,null,null,"［今回請求額明細］　※適用税率毎に記載をお願い致します。"]
["振　込　先　※振込先の手書き修正は不可といたします。再度発行してください。",null,null,null,null,null,null,null,null,null,null,null,null,null,null,null,null,null,null,null,null,null,null,null,null,null,null,null,"消費税区分",null,null,null,null,null,null,"税抜",null,null,null,null,null,null,"消費税等",null,null,null,null,null,null,"税込"]
["金融機関",null,null,{"$f":"IF(入力シート!E23=\"\",\"\",入力シート!E23)","v":""},null,null,null,null,null,null,null,null,null,"支店名",null,null,null,{"$f":"IF(入力シート!S23=\"\",\"\",入力シート!S23)","v":""},null,null,null,null,null,null,null,null,null,null,"10%対象",null,null,null,null,null,null,{"$f":"IF(入力シート!AK23=\"\",\"\",入力シート!AK23)","v":0},null,null,null,null,null,null,{"$f":"IF(入力シート!AR23=\"\",\"\",入力シート!AR23)","v":0},null,null,null,null,null,null,{"$f":"IF(入力シート!AY23=\"\",\"\",入力シート!AY23)","v":0}]
["預金種別",null,null,{"$f":"IF(入力シート!E24=\"\",\"\",入力シート!E24)","v":""},null,null,null,null,null,null,null,null,null,"口座番号",null,null,null,{"$f":"IF(入力シート!S24=\"\",\"\",入力シート!S24)","v":""},null,null,null,null,null,null,null,null,null,null,"対象外",null,null,null,null,null,null,{"$f":"IF(入力シート!AK24=\"\",\"\",入力シート!AK24)","v":0},null,null,null,null,null,null,{"$f":"IF(入力シート!AR24=\"\",\"\",入力シート!AR24)","v":0},null,null,null,null,null,null,{"$f":"IF(入力シート!AY24=\"\",\"\",入力シート!AY24)","v":0}]
["口座名義　　　　　　　　　　　　　　　　　　　　　　　　　　　　　　　　　　　　　　　　　　　　　　　　　　　　　　　　　　　　　　　　　　　　　　　　　　　　　　　　（漢字）",null,null,{"$f":"IF(入力シート!E25=\"\",\"\",入力シート!E25)","v":""},null,null,null,null,null,null,null,null,null,null,null,null,null,null,null,null,null,null,null,null,null,null,null,null,"計",null,null,null,null,null,null,{"$f":"SUM(AJ23:AP24)","v":0},null,null,null,null,null,null,{"$f":"SUM(AQ23:AW24)","v":0},null,null,null,null,null,null,{"$f":"SUM(AX23:BD24)","v":0}]
["口座名義　　　　　　　　　　　　　　　　　　　　　　　　　　　　　　　　　　　　　　　　　　　　　　　　　　　　　　　　　　　　　　　　　　　　　　　　　　　　　　　　（カナ）",null,null,{"$f":"IF(入力シート!E26=\"\",\"\",入力シート!E26)","v":""}]
[null,null,null,null,null,null,null,null,null,null,null,null,null,null,null,null,null,null,null,null,null,null,null,null,null,null,"認印",null,null,null,null,"経理",null,null,null,null,"本部長",null,null,null,null,"部長",null,null,null,null,"所長"]
[]
[]
[]
["（権利義務の譲渡について）",null,null,null,null,null,null,null,null,null,null,null,null,null,null,null,null,null,null,null,null,null,null,null,null,null,null,null,null,null,null,null,null,null,null,null,null,null,null,null,null,null,null,null,null,null,null,null,null,null,null,null,null,null,null,"V19-04"]
["（１）注文者または請負者は、この契約により生ずる権利または義務を第三者に譲渡し、または承継させない。ただし、相手方の書面による承継を得た場合は、この限りでない。"]
["（２）注文者または請負者は、工事目的物または工事現場に搬入した工事材料（工場製品を含む。以下同じ）を第三者に譲渡し、貸与し、または抵当権その他の担保の目的に供しない。"]
["　　　ただし、相手方の書面による承継を得た場合は、この限りでない。"]
[]
[]
[]
[]
[]
[]
[null,"種類",null,null,null,null,"工事原価 ・ 部　門 ・ 物　件",null,null,null,null,null,null,null,null,null,null,null,"支払予定日"]
[null,"工事区分",null,null,null,null,"自社",null,null,"ＪＶ",null,null,"完成未払",null,null,null,null,null,"　　　年　　　月　　　日"]
[null,"工種・科目",null,null,null,null,null,null,null,null,"税区",null,null,"請求税抜",null,null,null,null,"消費税等",null,null,null,null,"請求税込"]
[]
[]
[]
[]
[]
[null,"計"]
[]
[]
["振　込　先　※振込先の手書き修正は不可といたします。再度発行してください。"]
["金融機関",null,null,{"$f":"IF(入力シート!E53=\"\",\"\",入力シート!E53)","v":""},null,null,null,null,null,null,null,null,null,"支店名",null,null,null,{"$f":"IF(入力シート!S53=\"\",\"\",入力シート!S53)","v":""}]
["預金種別",null,null,{"$f":"IF(入力シート!E54=\"\",\"\",入力シート!E54)","v":""},null,null,null,null,null,null,null,null,null,"口座番号",null,null,null,{"$f":"IF(入力シート!S54=\"\",\"\",入力シート!S54)","v":""}]
["口座名義　　　　　　　　　　　　　　　　　　　　　　　　　　　　　　　　　　　　　　　　　　　　　　　　　　　　　　　　　　　　　　　　　　　　　　　　　　　　　　　　（漢字）",null,null,{"$f":"IF(入力シート!E55=\"\",\"\",入力シート!E55)","v":""}]
["口座名義　　　　　　　　　　　　　　　　　　　　　　　　　　　　　　　　　　　　　　　　　　　　　　　　　　　　　　　　　　　　　　　　　　　　　　　　　　　　　　　　（カナ）",null,null,{"$f":"IF(入力シート!E56=\"\",\"\",入力シート!E56)","v":""}]

{"sheet":"入力シート","index":1,"n_rows":26,"n_cols":81,"rows_kept":26,"cut":false,"hidden":false,"merged":[[8,47,8,50],[16,50,16,56],[15,23,15,28],[15,50,15,56],[16,29,16,35],[18,43,18,49],[17,43,17,49],[12,50,12,56],[14,29,14,35],[12,29,12,35],[12,43,12,49],[16,43,16,49],[16,36,16,42],[13,23,13,28],[12,23,12,28],[15,43,15,49],[14,43,14,49],[13,43,13,49],[14,50,14,56],[13,50,13,56],[2,51,2,56],[2,48,2,50],[9,29,9,35],[8,23,8,26],[9,50,9,56],[11,50,11,56],[10,36,10,42],[11,36,11,42],[11,43,11,49],[10,50,10,56],[10,23,10,28],[11,23,11,28],[11,29,11,35],[4,27,5,56],[10,29,10,35],[10,43,10,49],[6,27,7,50],[6,23,7,26],[9,36,9,42],[6,51,7,51],[8,45,8,46],[8,51,8,56],[9,43,9,49],[4,23,5,26],[24,43,24,49],[24,50,24,56],[23,29,23,35],[23,36,23,42],[22,36,22,42],[22,43,22,49],[22,50,22,56],[22,29,22,35],[3,36,3,42],[24,36,24,42],[21,36,21,42],[21,43,21,49],[21,50,21,56],[18,29,18,35],[18,36,18,42],[17,29,17,32],[18,50,18,56],[17,36,17,42],[23,43,23,49],[23,50,23,56],[13,29,13,35],[8,27,8,44],[17,50,17,56],[17,33,17,35],[23,1,23,3],[23,4,23,13],[23,14,23,17],[23,18,23,26],[25,1,25,3],[25,4,25,26],[24,1,24,3],[24,4,24,26],[21,29,21,35],[24,29,24,35],[21,1,21,26],[22,1,22,3],[22,4,22,13],[22,14,22,17],[22,18,22,26],[4,1,4,5],[9,1,10,5],[15,29,15,35],[12,36,12,42],[15,36,15,42],[14,36,14,42],[13,36,13,42],[14,23,14,28],[12,1,12,5],[12,6,12,7],[4,6,4,8],[4,10,4,11],[9,6,10,21],[11,1,11,5],[11,6,11,7],[5,1,6,5],[5,6,6,21],[7,1,7,5],[7,6,7,21],[8,6,8,21],[8,1,8,5],[9,23,9,28]]}
[]
[]
[]
[null,null,null,null,null,null,null,null,null,null,null,null,null,null,null,null,null,null,null,null,null,null,null,null,null,null,null,null,null,null,null,null,null,null,null,null,"登録番号",null,null,null,null,null,null,"T",null,null,null,null,null,null,null,null,null,null,null,null,null,null,null,null,null,null,null,null,null,null,null,null,null,null,null,null,null,null,null,null,null,null,null,"課税仕入５％外税",0.05]
[null,"請求年月",null,null,null,null,null,null,null,"年",null,null,"月分",null,null,null,null,null,null,null,null,null,null,"住所",null,null,null,null,null,null,null,null,null,null,null,null,null,null,null,null,null,null,null,null,null,null,null,null,null,null,null,null,null,null,null,null,null,null,null,null,null,null,null,null,null,null,null,null,null,null,null,null,null,null,null,null,null,null,null,"課税仕入８％外税",0.08]
[null,"工事件名",null,null,null,null,null,null,null,null,null,null,null,null,null,null,null,null,null,null,null,null,null,null,null,null,null,null,null,null,null,null,null,null,null,null,null,null,null,null,null,null,null,null,null,null,null,null,null,null,null,null,null,null,null,null,null,null,null,null,null,null,null,null,null,null,null,null,null,null,null,null,null,null,null,null,null,null,null,"非課税",0]
[null,null,null,null,null,null,null,null,null,null,null,null,null,null,null,null,null,null,null,null,null,null,null,"会社名",null,null,null,null,null,null,null,null,null,null,null,null,null,null,null,null,null,null,null,null,null,null,null,null,null,null,null,"印",null,null,null,null,null,null,null,null,null,null,null,null,null,null,null,null,null,null,null,null,null,null,null,null,null,null,null,"対象外",0]
[null,"注文書番号",null,null,null,null,null,null,null,null,null,null,null,null,null,null,null,null,null,null,null,null,null,null,null,null,null,null,null,null,null,null,null,null,null,null,null,null,null,null,null,null,null,null,null,null,null,null,null,null,null,null,null,null,null,null,null,null,null,null,null,null,null,null,null,null,null,null,null,null,null,null,null,null,null,null,null,null,null,"消費税差額",0]
[null,"請求書番号",null,null,null,null,null,null,null,null,null,null,null,null,null,null,null,null,null,null,null,null,null,"担当者",null,null,null,null,null,null,null,null,null,null,null,null,null,null,null,null,null,null,null,null,null,"印",null,"電話番号"]
[null,"請求内容",null,null,null,null,null,null,null,null,null,null,null,null,null,null,null,null,null,null,null,null,null,"項目",null,null,null,null,null,"契約金額",null,null,null,null,null,null,"既請求金額",null,null,null,null,null,null,"今回請求額",null,null,null,null,null,null,"残金額",null,null,null,null,null,null,null,null,null,null,null,"既請求金額","今回請求","請求累計"]
[null,null,null,null,null,null,null,null,null,null,null,null,null,null,null,null,null,null,null,null,null,null,null,"契約金額",null,null,null,null,null,0,null,null,null,null,null,null,0,null,null,null,null,null,null,0,null,null,null,null,null,null,{"$f":"IF(AD11=0,0,AD11-AK11-AR11)","v":0},null,null,null,null,null,null,null,null,null,null,null,0,1000000,{"$f":"SUM(BK11:BL11)","v":1000000}]
[null,"支払サイト",null,null,null,null,null,null,"日",null,null,null,null,null,null,null,null,null,null,null,null,null,null,"変更増額",null,null,null,null,null,0,null,null,null,null,null,null,0,null,null,null,null,null,null,0,null,null,null,null,null,null,{"$f":"AD12-AK12-AR12","v":0},null,null,null,null,null,null,null,null,null,null,null,0,0,{"$f":"SUM(BK12:BL12)","v":0}]
[null,"手形",null,null,null,null,null,null,"日",null,null,null,null,null,null,null,null,null,null,null,null,null,null,"変更減額",null,null,null,null,null,0,null,null,null,null,null,null,0,null,null,null,null,null,null,0,null,null,null,null,null,null,{"$f":"AD13-AK13-AR13","v":0},null,null,null,null,null,null,null,null,null,null,null,0,0,0]
[null,null,null,null,null,null,null,null,null,null,null,null,null,null,null,null,null,null,null,null,null,null,null,"税抜計",null,null,null,null,null,{"$f":"SUM(AD11:AH13)","v":0},null,null,null,null,null,null,{"$f":"SUM(AK11:AO13)","v":0},null,null,null,null,null,null,{"$f":"SUM(AR11:AV13)","v":0},null,null,null,null,null,null,{"$f":"IF(AD14=0,0,AD14-AK14-AR14)","v":0},null,null,null,null,null,null,null,null,null,null,null,0,1000000,1000000]
[null,null,null,null,null,null,null,null,null,null,null,null,null,null,null,null,null,null,null,null,null,null,null,"消費税等",null,null,null,null,null,0,null,null,null,null,null,null,0,null,null,null,null,null,null,{"$f":"AR25","v":0},null,null,null,null,null,null,{"$f":"IF(AD15=0,0,AD15-AK15-AR15)","v":0},null,null,null,null,null,null,null,null,null,null,null,0,100000,100000]
[null,null,null,null,null,null,null,null,null,null,null,null,null,null,null,null,null,null,null,null,null,null,null,"請求金額計",null,null,null,null,null,{"$f":"SUM(AD14:AI15)","v":0},null,null,null,null,null,null,{"$f":"SUM(AK14:AP15)","v":0},null,null,null,null,null,null,{"$f":"AY25","v":0},null,null,null,null,null,null,{"$f":"IF(AD16=0,0,AD16-AK16-AR16)","v":0},null,null,null,null,null,null,null,null,null,null,null,0,1100000,1100000]
[null,null,null,null,null,null,null,null,null,null,null,null,null,null,null,null,null,null,null,null,null,null,null,null,null,null,null,null,null,"※１　預り保留金",null,null,null,null,null,null,"前回迄の保留金",null,null,null,null,null,null,"今回保留金",null,null,null,null,null,null,"預り保留金累計",null,null,null,null,null,null,null,null,null,null,null,"前回迄の保留金","今回保留金","保留金累計",null,null,null,null,null,null,null,null,null,null,null,null,null,null,{"$f":"IF(ISERROR(VLOOKUP($G$17,課税区分リスト,2,FALSE))=TRUE,0,(VLOOKUP($G$17,課税区分リスト,2,FALSE)))","v":0}]
[null,null,null,null,null,null,null,null,null,null,null,null,null,null,null,null,null,null,null,null,null,null,null,null,null,null,null,null,null,"保留率",null,null,null,0,null,null,0,null,null,null,null,null,null,{"$f":"IF(AR11+AY11=0,0,IF(AH18=0,0,ROUND(AR16*AH18,0)))","v":0},null,null,null,null,null,null,{"$f":"SUM(AK18,AR18)","v":0},null,null,null,null,null,null,null,null,null,null,null,0,0,{"$f":"SUM(BK18:BL18)","v":0}]
[null,null,null,null,null,null,null,null,null,null,null,null,null,null,null,null,null,null,null,null,null,null,null,null,null,null,null,null,null,"保留金解除金額",null,null,null,null,null,null,0,null,null,null,null,null,null,"今回支払金額",null,null,null,null,null,null,{"$f":"AR16-AR18+AK19","v":0}]
[null,null,null,null,null,null,null,null,null,null,null,null,null,null,null,null,null,null,null,null,null,null,null,null,null,null,null,null,null,"※１．預り保留金は最終請求お支払の翌月請求にてお支払いたします。（更新ボタンを押してください）",null,null,null,null,null,null,null,null,null,null,null,null,null,null,null,null,null,null,null,null,null,null,null,null,null,null,null,null,null,null,null,null,null,"保留金解除",0]
[null,null,null,null,null,null,null,null,null,null,null,null,null,null,null,null,null,null,null,null,null,null,null,null,null,null,null,null,null,"［今回請求額明細］　※適用税率毎に記載をお願い致します。",null,null,null,null,null,null,null,null,null,null,null,null,null,null,null,null,null,null,null,null,null,null,null,null,null,null,null,null,null,null,null,null,null,"前回まで保留金",0]
[null,"振　込　先　※振込先の手書き修正は不可といたします。再度発行してください。",null,null,null,null,null,null,null,null,null,null,null,null,null,null,null,null,null,null,null,null,null,null,null,null,null,null,null,"消費税区分",null,null,null,null,null,null,"税抜",null,null,null,null,null,null,"消費税等",null,null,null,null,null,null,"税込"]
[null,"金融機関",null,null,null,null,null,null,null,null,null,null,null,null,"支店名",null,null,null,null,null,null,null,null,null,null,null,null,null,null,"10%対象",null,null,null,null,null,null,0,null,null,null,null,null,null,{"$f":"ROUNDDOWN(AK23*0.1,0)","v":0},null,null,null,null,null,null,{"$f":"AK23+AR23","v":0}]
[null,"預金種別",null,null,null,null,null,null,null,null,null,null,null,null,"口座番号",null,null,null,null,null,null,null,null,null,null,null,null,null,null,"対象外",null,null,null,null,null,null,0,null,null,null,null,null,null,{"$f":"ROUNDDOWN(AK24*0.08,0)","v":0},null,null,null,null,null,null,{"$f":"AK24+AR24","v":0}]
[null,"口座名義　　　　　　　　　　　　　　　　　　　　　　　　　　　　　　　　　　　　　　　　　　　　　　　　　　　　　　　　　　　　　　　　　　　　　　　　　　　　　　　　（漢字）",null,null,null,null,null,null,null,null,null,null,null,null,null,null,null,null,null,null,null,null,null,null,null,null,null,null,null,"計",null,null,null,null,null,null,null,null,null,null,null,null,null,{"$f":"AR23","v":0},null,null,null,null,null,null,{"$f":"SUM(AY23:BE24)","v":0}]
[null,"口座名義　　　　　　　　　　　　　　　　　　　　　　　　　　　　　　　　　　　　　　　　　　　　　　　　　　　　　　　　　　　　　　　　　　　　　　　　　　　　　　　　（カナ）"]

{"sheet":"請求明書（新書式）","index":2,"n_rows":28,"n_cols":15,"rows_kept":28,"cut":false,"hidden":false,"merged":[[1,0,1,4],[1,6,1,8],[1,10,1,14],[3,1,4,1],[3,2,3,5],[3,6,3,7],[3,8,3,9],[3,10,3,11],[3,12,3,13],[3,14,4,14]]}
[null,null,null,null,null,"請　求　明　細　書"]
[{"$f":"\"工事件名　\"&入力シート!G6","v":"工事件名　"},null,null,null,null,null,{"$f":"入力シート!G5&\" 年　\"&入力シート!K5&\" 月分\"","v":" 年　 月分"},null,null,null,{"$f":"\"会社名　\"&入力シート!AB7","v":"会社名　"}]
[]
["工種・品名","税区分","契約",null,null,null,"前回迄出来高・請求",null,"今回出来高・請求",null,"累計出来高・請求",null,"契約残",null,"進捗率"]
["（形状・寸法等）",null,"数量","単位","単価","金額","数量","金額","数量","金額","数量","金額","数量","金額"]
[]
[]
[]
[]
[]
[]
[]
[]
[]
[]
[]
[]
[]
[]
[]
[]
[]
[]
[]
[]
[]
["税　　抜　　計"]
["〇は軽減税率対象品目"]